bitfinex/quotes_SOLUSD_20240813
["timestamp","ask_amount","ask_price","bid_price","bid_amount"]
[1723564692607,32.58,146.32,146.24,6.1431]
[1723564692898,12.58,146.32,146.24,18.7231]
[1723564693067,6.8338,146.33,146.24,18.7231]
[1723564693272,19.4143,146.32,146.25,45.0]
[1723564693473,19.4144,146.32,146.25,45.0]
[1723564693705,12.58,146.32,146.26,0.25098]
[1723564694469,19.4134,146.34,146.26,0.25098]
[1723564694668,19.4134,146.34,146.27,15.564]
[1723564694901,19.4134,146.34,146.28,45.25098]
[1723564696206,12.58,146.34,146.28,45.25098]
[1723564696703,6.833,146.35,146.28,45.25098]
[1723564696871,19.67038099,146.36,146.28,45.25098]
[1723564697073,26.50298099,146.36,146.28,45.25098]
[1723564697299,7.09038099,146.36,146.29,6.5928]
[1723564697510,19.4118,146.38,146.3,58.64155141]
[1723564697511,12.58,146.38,146.3,58.64155141]
[1723564697803,6.8315,146.38,146.31,15.6553]
[1723564698005,6.8315,146.38,146.32,46.06144061]
[1723564698190,6.8315,146.38,146.33,0.81101837]
[1723564698791,6.8312,146.39,146.32,45.25098]
[1723564699002,6.8312,146.39,146.33,0.81051955]
[1723564699500,7.08558355,146.41,146.32,45.25098]
[1723564699799,7.08558355,146.41,146.32,57.83098]
[1723564699975,6.8306,146.4,146.33,6.3907]
[1723564700174,6.8312,146.39,146.34,45.25098]
[1723564700390,19.4107,146.4,146.34,45.25098]
[1723564700612,12.58,146.4,146.34,45.25098]
[1723564701305,19.4106,146.4,146.34,45.25098]
[1723564701524,12.58,146.4,146.34,45.25098]
[1723564701703,19.4098,146.42,146.34,45.25098]
[1723564702208,6.8307,146.4,146.34,45.25098]
[1723564703023,6.8311,146.39,146.34,45.25098]
[1723564703420,21.07123536,146.4,146.34,45.25098]
[1723564703725,19.4106,146.4,146.34,45.25098]
[1723564704918,12.58,146.4,146.34,45.25098]
[1723564705296,6.831,146.39,146.34,45.25098]
[1723564706539,19.4106,146.4,146.34,45.25098]
[1723564706725,12.58,146.4,146.34,45.25098]
[1723564707799,1.66063536,146.39,146.34,45.25098]
[1723564708531,19.4109,146.4,146.34,45.25098]
[1723564709036,12.58,146.4,146.34,45.25098]
[1723564709701,19.4106,146.4,146.34,45.25098]
[1723564710123,12.58,146.4,146.34,45.25098]
[1723564711560,7.08744071,146.43,146.35,15.5097]
[1723564711733,6.8288,146.44,146.36,45.25098]
[1723564711734,12.58,146.44,146.36,45.25098]
[1723564712023,6.8293,146.43,146.36,45.25098]
[1723564712435,19.4089,146.44,146.36,45.25098]
[1723564712735,12.58,146.44,146.36,45.25098]
[1723564713136,19.4087,146.44,146.36,45.25098]
[1723564713300,1.66063536,146.43,146.36,45.25098]
[1723564713501,19.4087,146.44,146.36,45.25098]
[1723564713799,6.8301,146.41,146.36,45.25098]
[1723564714504,19.4097,146.42,146.36,45.25098]
[1723564715354,1.66063536,146.45,146.36,45.0]
[1723564715355,12.58,146.4,146.36,45.0]
[1723564718748,12.58,146.42,146.37,0.12549]
[1723564718943,12.58,146.42,146.37,0.25098]
[1723564719760,7.08624319,146.46,146.37,0.25098]
[1723564719919,39.4086,146.45,146.38,6.2369]
[1723564720123,39.4086,146.45,146.39,45.25098]
[1723564720731,12.58,146.43,146.39,45.0]
[1723564721147,19.4095,146.43,146.39,45.0]
[1723564721348,6.8296,146.42,146.39,45.0]
[1723564721851,19.4093,146.43,146.39,45.0]
[1723564723274,12.58,146.43,146.39,45.0]
[1723564723941,19.4093,146.43,146.39,45.0]
[1723564725246,14.24063536,146.43,146.39,45.0]
[1723564725460,19.4101,146.41,146.39,45.0]
[1723564726569,12.58,146.41,146.39,45.0]
[1723564727065,14.24063536,146.41,146.39,45.0]
[1723564727474,19.4093,146.43,146.39,45.0]
[1723564727765,6.8297,146.42,146.39,45.0]
[1723564728572,12.58,146.41,146.39,45.0]
[1723564730682,12.58,146.41,146.35,15.5097]
[1723564730683,19.4102,146.41,146.35,15.5097]
[1723564730884,19.4102,146.41,146.36,45.0]
[1723564730885,6.8306,146.4,146.36,45.0]
[1723564731054,19.4102,146.41,146.36,45.0]
[1723564731262,12.58,146.39,146.36,45.0]
[1723564732979,14.24063536,146.39,146.36,45.0]
[1723564733294,12.58,146.39,146.36,45.0]
[1723564734561,14.24063536,146.39,146.36,45.0]
[1723564734760,12.58,146.39,146.36,45.0]
[1723564738184,12.58,146.41,146.36,45.0]
[1723564738699,19.4101,146.41,146.36,45.0]
[1723564740499,12.58,146.41,146.36,45.0]
[1723564740796,6.8306,146.4,146.36,45.0]
[1723564741095,1.66063536,146.39,146.36,45.0]
[1723564741276,6.8306,146.4,146.36,45.0]
[1723564741794,7.08792229,146.42,146.37,0.12549]
[1723564741964,6.8296,146.42,146.37,0.25098]
[1723564742158,6.8302,146.41,146.37,0.12549]
[1723564742387,6.8302,146.41,146.36,45.0]
[1723564745395,12.58,146.42,146.36,45.0]
[1723564745714,26.49574959,146.44,146.37,0.25098]
[1723564745865,26.49574959,146.44,146.37,1.03019979]
[1723564746067,26.49574959,146.44,146.37,0.25098]
[1723564746292,19.409,146.44,146.37,0.25098]
[1723564746476,12.58,146.44,146.37,0.25098]
[1723564746680,19.409,146.44,146.37,0.25098]
[1723564747196,6.8292,146.43,146.37,0.25098]
[1723564747395,6.8296,146.42,146.37,0.25098]
[1723564747899,6.8301,146.41,146.37,0.25098]
[1723564748385,12.58,146.42,146.37,0.25098]
[1723564748584,19.4097,146.42,146.37,0.25098]
[1723564749874,12.58,146.42,146.37,0.25098]
[1723564750199,19.4097,146.42,146.37,0.25098]
[1723564750772,19.4098,146.42,146.37,0.25098]
[1723564751805,6.8298,146.42,146.37,0.25098]
[1723564752584,19.4093,146.43,146.37,0.25098]
[1723564752994,6.8296,146.42,146.37,0.25098]
[1723564753809,14.24063536,146.43,146.37,0.25098]
[1723564754003,8.49053536,146.42,146.37,0.25098]
[1723564755281,12.58,146.41,146.37,0.25098]
[1723564755881,21.07073536,146.41,146.37,0.25098]
[1723564756808,14.24063536,146.41,146.37,0.25098]
[1723564757111,12.58,146.41,146.37,0.25098]
[1723564757879,8.49043536,146.42,146.35,15.5097]
[1723564757880,12.58,146.39,146.35,15.5097]
[1723564758086,19.4112,146.39,146.35,15.5097]
[1723564758285,12.58,146.39,146.35,15.5097]
[1723564758599,12.58,146.41,146.35,15.5097]
[1723564759409,12.58,146.41,146.36,45.0]
[1723564759615,12.58,146.41,146.37,0.12549]
[1723564759817,19.4102,146.41,146.37,0.12549]
[1723564759979,1.66063536,146.4,146.36,45.0]
[1723564760183,12.58,146.41,146.36,45.0]
[1723564760437,6.8306,146.4,146.36,45.0]
[1723564760600,8.49123536,146.4,146.36,45.0]
[1723564760998,12.58,146.41,146.36,45.0]
[1723564761490,19.4101,146.41,146.36,45.0]
[1723564762111,12.58,146.41,146.36,45.0]
[1723564762315,6.8298,146.42,146.37,0.12549]
[1723564762525,12.58,146.43,146.37,0.25098]
[1723564762720,6.8296,146.42,146.37,0.25098]
[1723564768230,6.8301,146.41,146.37,0.25098]
[1723564768537,6.8308,146.4,146.37,0.25098]
[1723564768907,6.8311,146.39,146.36,45.0]
[1723564769102,6.8307,146.4,146.36,45.0]
[1723564769602,12.58,146.41,146.36,45.0]
[1723564769603,19.4102,146.41,146.36,45.0]
[1723564770925,6.8307,146.4,146.36,45.0]
[1723564772825,12.58,146.39,146.36,45.0]
[1723564773926,1.66063536,146.41,146.36,45.0]
[1723564773927,12.58,146.41,146.36,45.0]
[1723564774906,7.08895404,146.42,146.36,45.0]
[1723564775231,6.829,146.44,146.37,0.25098]
[1723564775532,7.08741063,146.46,146.37,0.25098]
[1723564775841,19.66741063,146.46,146.38,6.4461]
[1723564776008,19.66741063,146.46,146.39,45.25098]
[1723564776215,26.8286,146.45,146.39,45.25098]
[1723564776410,19.4088,146.44,146.39,45.25098]
[1723564777432,19.4083,146.45,146.4,15.2814]
[1723564777732,6.8279,146.46,146.41,45.25098]
[1723564778027,12.58,146.47,146.41,45.25098]
[1723564778028,6.8282,146.45,146.41,45.25098]
[1723564778237,19.4082,146.45,146.41,45.25098]
[1723564779334,6.8287,146.44,146.41,45.25098]
[1723564779513,6.8292,146.43,146.41,45.0]
[1723564779916,6.8289,146.44,146.41,45.0]
[1723564780716,6.8292,146.43,146.41,45.0]
[1723564781043,6.8288,146.44,146.41,45.0]
[1723564782046,12.58,146.47,146.41,45.0]
[1723564782210,20.0,146.46,146.42,0.12549]
[1723564782411,19.4084,146.45,146.41,45.0]
[1723564783322,12.58,146.45,146.41,45.0]
[1723564784216,19.4086,146.45,146.41,45.0]
[1723564784539,21.06923536,146.45,146.41,45.0]
[1723564784946,19.4086,146.45,146.41,45.0]
[1723564785314,12.58,146.45,146.41,45.0]
[1723564785820,26.8278,146.46,146.42,0.25098]
[1723564786133,6.8278,146.46,146.42,0.25098]
[1723564786511,6.8278,146.46,146.42,0.12549]
[1723564786717,19.4085,146.45,146.41,45.0]
[1723564788937,6.8288,146.44,146.41,45.0]
[1723564789320,6.8292,146.43,146.41,45.0]
[1723564790155,6.8289,146.44,146.41,45.0]
[1723564791241,19.4092,146.43,146.41,45.0]
[1723564791445,6.8296,146.42,146.41,45.0]
[1723564792442,14.24063536,146.43,146.36,15.2917]
[1723564792645,12.58,146.39,146.36,15.2917]
[1723564793123,12.58,146.37,146.36,15.2917]
[1723564793620,19.412,146.37,146.34,6.071]
[1723564794032,12.58,146.37,146.32,15.2917]
[1723564794245,12.58,146.33,146.3,6.071]
[1723564794629,6.8326,146.36,146.3,6.071]
[1723564794831,12.58,146.36,146.3,6.071]
[1723564795245,12.58,146.37,146.3,6.071]
[1723564795621,12.58,146.37,146.31,0.12549]
[1723564795828,12.58,146.37,146.31,45.25098]
[1723564796722,19.412,146.37,146.31,45.25098]
[1723564796940,12.58,146.37,146.31,45.25098]
[1723564797148,12.58,146.35,146.31,45.0]
[1723564797455,19.4129,146.35,146.31,45.0]
[1723564797651,12.58,146.35,146.31,45.0]
[1723564799047,6.8325,146.36,146.31,45.0]
[1723564799343,6.833,146.35,146.31,45.0]
[1723564799728,12.58,146.36,146.31,45.0]
[1723564799929,6.8329,146.35,146.31,45.0]
[1723564800871,19.4129,146.35,146.31,45.0]
[1723564801850,12.58,146.33,146.31,45.0]
[1723564802923,19.4139,146.33,146.31,45.0]
[1723564803653,12.58,146.33,146.31,45.0]
[1723564805540,19.4139,146.33,146.31,45.0]
[1723564805948,12.58,146.33,146.31,45.0]
[1723564806840,19.4142,146.33,146.31,45.0]
[1723564807043,12.58,146.33,146.27,6.6515]
[1723564807351,19.416,146.29,146.24,15.1714]
[1723564807557,6.8362,146.28,146.24,15.1714]
[1723564807925,19.4166,146.27,146.24,15.1714]
[1723564808134,12.58,146.25,146.21,3.55681742]
[1723564808528,12.58,146.29,146.21,16.13681742]
[1723564808754,12.58,146.31,146.22,15.163]
[1723564808960,12.58,146.33,146.23,19.33084327]
[1723564809267,6.4064,146.39,146.26,22.5049]
[1723564809449,12.58,146.36,146.27,45.25098]
[1723564809634,6.8331,146.35,146.27,45.25098]
[1723564810045,19.4126,146.36,146.27,45.25098]
[1723564810355,19.4116,146.38,146.28,16.2768]
[1723564810564,19.4116,146.38,146.29,45.25098]
[1723564810764,12.58,146.38,146.29,45.25098]
[1723564810954,6.832,146.37,146.29,45.25098]
[1723564811462,19.4135,146.34,146.29,45.25098]
[1723564811833,38.2835,146.34,146.29,45.25098]
[1723564812640,31.45,146.34,146.29,45.25098]
[1723564812861,38.2834,146.34,146.29,45.0]
[1723564813061,31.45,146.34,146.29,45.0]
[1723564813455,6.8329,146.35,146.29,45.0]
[1723564813766,31.45,146.38,146.3,0.25098]
[1723564813977,38.2807,146.4,146.3,0.25098]
[1723564814176,6.8311,146.39,146.32,15.239]
[1723564814358,6.8311,146.39,146.33,45.25098]
[1723564816162,6.8316,146.38,146.33,45.25098]
[1723564816561,6.8311,146.39,146.33,45.25098]
[1723564817691,31.45,146.38,146.33,45.25098]
[1723564817855,31.45,146.36,146.32,15.239]
[1723564818053,6.8338,146.33,146.31,6.022]
[1723564818285,7.08972639,146.41,146.28,15.4998]
[1723564818286,31.45,146.34,146.28,15.4998]
[1723564818583,38.2843,146.32,146.28,15.4998]
[1723564818771,31.45,146.34,146.28,15.4998]
[1723564818961,20.0,146.33,146.28,15.4998]
[1723564819161,38.2834,146.34,146.28,15.4998]
[1723564819162,31.45,146.34,146.28,15.4998]
[1723564819361,6.833,146.35,146.28,15.4998]
[1723564819562,26.8334,146.34,146.28,15.4998]
[1723564819755,6.8352,146.31,146.28,15.4998]
[1723564820068,6.8353,146.3,146.27,6.5317]
[1723564820281,6.8359,146.29,146.24,15.4998]
[1723564820463,31.45,146.3,146.23,6.5317]
[1723564820464,6.8372,146.26,146.23,6.5317]
[1723564820660,31.45,146.28,146.23,6.5317]
[1723564820960,38.2863,146.28,146.23,6.5317]
[1723564821357,6.8367,146.27,146.23,6.5317]
[1723564821557,45.37836615,146.3,146.23,6.5317]
[1723564821781,20.0,146.29,146.24,45.25098]
[1723564822158,20.0,146.3,146.24,45.25098]
[1723564822553,26.8356,146.3,146.24,45.25098]
[1723564822988,6.8349,146.31,146.24,45.25098]
[1723564823478,6.8362,146.28,146.24,0.25098]
[1723564823689,6.8359,146.29,146.24,0.25098]
[1723564823987,6.8352,146.3,146.24,0.25098]
[1723564824213,6.8353,146.3,146.24,0.25098]
[1723564824364,31.45,146.32,146.24,0.25098]
[1723564824562,20.0,146.31,146.24,0.25098]
[1723564824763,26.8351,146.31,146.24,45.25098]
[1723564824967,31.45,146.3,146.24,45.25098]
[1723564825288,6.8369,146.27,146.23,6.5317]
[1723564825489,31.45,146.26,146.2,21.6384]
[1723564825797,6.8377,146.25,146.2,21.6384]
[1723564826279,38.2871,146.26,146.2,21.6384]
[1723564826594,31.45,146.28,146.2,21.6384]
[1723564826889,6.836,146.29,146.2,21.6384]
[1723564827097,26.8362,146.28,146.21,45.25098]
[1723564827275,20.0,146.28,146.21,45.25098]
[1723564827471,6.8371,146.26,146.21,45.25098]
[1723564827858,51.45,146.28,146.21,45.25098]
[1723564828287,20.0,146.28,146.21,45.25098]
[1723564828480,26.8359,146.29,146.21,45.25098]
[1723564828685,6.8362,146.28,146.21,45.25098]
[1723564829306,20.0,146.29,146.21,45.25098]
[1723564829487,31.45,146.32,146.21,45.25098]
[1723564829888,6.8358,146.29,146.21,45.25098]
[1723564830089,48.5361,146.32,146.21,45.25098]
[1723564830493,6.8358,146.29,146.21,45.25098]
[1723564830701,6.8352,146.3,146.21,45.25098]
[1723564831009,38.2847,146.32,146.21,45.25098]
[1723564831211,20.0,146.31,146.21,45.25098]
[1723564831406,45.37510284,146.34,146.23,6.0485]
[1723564831607,15.8898,146.36,146.23,6.0485]
[1723564831608,31.45,146.36,146.24,65.25098]
[1723564831800,6.8332,146.35,146.24,65.25098]
[1723564832334,30.76177971,146.38,146.26,22.3769]
[1723564832335,7.08977971,146.38,146.26,22.3769]
[1723564832631,31.45,146.37,146.27,45.25098]
[1723564832837,6.8348,146.31,146.27,45.12549]
[1723564832990,6.8348,146.31,146.27,45.0]
[1723564832991,6.8349,146.31,146.27,45.0]
[1723564833192,31.45,146.33,146.27,45.0]
[1723564833518,31.45,146.31,146.27,45.0]
[1723564833826,31.45,146.31,146.26,22.3769]
[1723564834006,38.2849,146.31,146.26,22.3769]
[1723564834624,6.8352,146.3,146.26,22.3769]
[1723564834992,6.8352,146.3,146.27,45.0]
[1723564835396,31.45,146.31,146.27,45.0]
[1723564835721,38.2849,146.31,146.27,45.0]
[1723564836294,31.45,146.31,146.27,45.0]
[1723564836903,38.284,146.33,146.27,45.0]
[1723564837204,38.283,146.35,146.28,0.25098]
[1723564837410,20.0,146.34,146.28,0.25098]
[1723564837896,26.8336,146.34,146.28,0.25098]
[1723564838425,20.0,146.34,146.28,0.25098]
[1723564838732,31.45,146.37,146.28,0.25098]
[1723564838900,20.0,146.36,146.28,0.25098]
[1723564840392,31.45,146.37,146.28,0.25098]
[1723564840599,6.8319,146.38,146.28,0.25098]
[1723564840997,6.8325,146.36,146.28,0.25098]
[1723564841322,1.66063536,146.35,146.28,0.25098]
[1723564841619,33.11063536,146.35,146.28,0.25098]
[1723564841832,1.66063536,146.34,146.28,0.25098]
[1723564842121,6.8337,146.34,146.28,0.25098]
[1723564842698,20.0,146.36,146.28,0.25098]
[1723564843616,26.8326,146.36,146.28,0.25098]
[1723564847325,20.0,146.36,146.29,16.3951]
[1723564847534,6.832,146.37,146.3,45.25098]
[1723564847904,6.8333,146.35,146.3,45.25098]
[1723564848496,31.45,146.37,146.3,45.25098]
[1723564848702,6.8346,146.32,146.29,16.3951]
[1723564848921,31.45,146.35,146.29,16.3951]
[1723564849116,31.45,146.33,146.29,16.3951]
[1723564849321,1.66063536,146.32,146.29,16.3951]
[1723564849629,31.45,146.33,146.29,16.3951]
[1723564849805,6.8335,146.34,146.29,16.3951]
[1723564850303,6.8335,146.34,146.3,45.0]
[1723564851120,20.0,146.36,146.3,45.0]
[1723564851912,6.8331,146.35,146.3,45.0]
[1723564852122,1.66063536,146.35,146.31,0.25098]
[1723564852322,45.37179805,146.37,146.31,0.25098]
[1723564852501,6.8324,146.37,146.31,0.25098]
[1723564853119,31.45,146.39,146.31,0.25098]
[1723564853315,31.45,146.37,146.31,0.25098]
[1723564853702,1.66063536,146.36,146.3,45.0]
[1723564854120,6.8334,146.34,146.3,45.0]
[1723564854321,38.283,146.35,146.3,45.0]
[1723564854826,6.8326,146.36,146.31,0.25098]
[1723564855413,31.45,146.37,146.31,0.25098]
[1723564855620,6.8315,146.38,146.31,0.25098]
[1723564855918,20.0,146.37,146.31,0.25098]
[1723564856120,20.0,146.37,146.32,6.0907]
[1723564856327,20.0,146.37,146.33,45.0]
[1723564856736,26.832,146.37,146.33,45.0]
[1723564857836,51.45,146.37,146.33,45.0]
[1723564858014,6.8326,146.36,146.33,45.0]
[1723564858816,6.8331,146.35,146.33,45.0]
[1723564859016,8.49373536,146.35,146.33,45.0]
[1723564859317,39.94373536,146.35,146.33,45.0]
[1723564859519,31.45,146.35,146.33,45.0]
[1723564859937,6.8326,146.36,146.33,45.0]
[1723564860311,58.282,146.37,146.33,45.0]
[1723564860636,6.8326,146.36,146.33,45.0]
[1723564860846,58.2821,146.37,146.33,45.0]
[1723564861345,1.66063536,146.36,146.33,45.0]
[1723564861512,51.45,146.37,146.33,45.0]
[1723564861715,20.0,146.37,146.33,45.0]
[1723564862842,13.91900934,146.4,146.34,0.12549]
[1723564863142,6.8311,146.39,146.35,15.575]
[1723564863445,6.8307,146.4,146.36,45.0]
[1723564866244,7.1325246,146.43,146.36,45.0]
[1723564866418,6.8294,146.43,146.38,6.5973]
[1723564866614,6.8303,146.41,146.39,45.0]
[1723564866831,6.8306,146.4,146.35,15.575]
[1723564867023,48.5223,146.44,146.35,15.575]
[1723564867024,6.831,146.39,146.36,45.0]
[1723564867518,1.66063536,146.38,146.36,45.0]
[1723564867731,6.8318,146.38,146.35,15.575]
[1723564867927,8.49293536,146.37,146.35,15.575]
[1723564868152,6.8323,146.37,146.35,15.575]
[1723564869118,6.8317,146.38,146.36,45.0]
[1723564869642,6.832,146.37,146.36,45.0]
[1723564869952,6.832,146.37,146.35,45.0]
[1723564870329,6.8316,146.38,146.35,45.0]
[1723564870528,6.832,146.37,146.35,45.0]
[1723564871451,51.45,146.41,146.35,45.0]
[1723564871664,6.8308,146.4,146.35,45.0]
[1723564871950,26.8311,146.39,146.35,45.0]
[1723564872155,6.8311,146.39,146.35,45.0]
[1723564872450,6.8307,146.4,146.35,45.0]
[1723564873348,6.8312,146.39,146.35,45.0]
[1723564874147,6.8307,146.4,146.35,45.0]
[1723564874346,6.831,146.39,146.35,45.0]
[1723564875550,31.45,146.39,146.35,45.0]
[1723564875752,6.8324,146.36,146.35,45.0]
[1723564875960,6.8324,146.36,146.32,16.2333]
[1723564876120,38.282,146.37,146.32,16.2333]
[1723564876321,6.8317,146.38,146.32,16.2333]
[1723564876643,31.45,146.39,146.32,16.2333]
[1723564876959,6.8307,146.4,146.32,16.2333]
[1723564877138,20.0,146.39,146.33,45.25098]
[1723564877452,38.2803,146.41,146.33,45.25098]
[1723564877650,6.8303,146.41,146.33,45.25098]
[1723564878034,6.8306,146.4,146.33,45.25098]
[1723564878425,6.8303,146.41,146.33,45.25098]
[1723564878843,6.8307,146.4,146.33,45.25098]
[1723564879835,6.831,146.39,146.33,45.25098]
[1723564880525,6.8307,146.4,146.33,45.25098]
[1723564881961,31.45,146.39,146.32,16.2333]
[1723564882156,20.0,146.38,146.32,16.2333]
[1723564882325,26.8318,146.38,146.32,16.2333]
[1723564883250,28.49243536,146.38,146.33,45.12549]
[1723564883747,6.832,146.37,146.33,45.12549]
[1723564884439,38.2823,146.37,146.33,45.0]
[1723564884755,6.8325,146.36,146.33,45.0]
[1723564885124,6.8329,146.35,146.33,45.0]
[1723564885329,6.8329,146.35,146.32,16.2333]
[1723564885330,8.49353536,146.35,146.32,16.2333]
[1723564886156,6.8329,146.35,146.32,16.2333]
[1723564886459,31.45,146.37,146.32,16.2333]
[1723564886779,26.8325,146.36,146.33,45.0]
[1723564887138,20.0,146.36,146.33,45.0]
[1723564887339,6.8321,146.37,146.33,45.0]
[1723564887842,6.8325,146.36,146.33,45.0]
[1723564888046,6.8321,146.37,146.33,45.0]
[1723564888870,6.8316,146.38,146.34,0.25098]
[1723564890444,7.13585244,146.4,146.34,0.25098]
[1723564890652,6.8316,146.38,146.34,0.25098]
[1723564892263,26.8311,146.39,146.34,0.25098]
[1723564894473,7.13585244,146.4,146.34,0.25098]
[1723564894775,17.0717,146.45,146.34,0.25098]
[1723564894975,6.8301,146.42,146.35,21.5611]
[1723564895178,24.20774736,146.45,146.35,21.5611]
[1723564895179,6.8301,146.41,146.36,45.25098]
[1723564895972,6.8306,146.4,146.36,45.25098]
[1723564898449,6.8303,146.41,146.36,45.25098]
[1723564898959,6.8297,146.42,146.36,45.25098]
[1723564899160,20.0,146.41,146.36,45.25098]
[1723564899362,26.8301,146.41,146.36,45.25098]
[1723564899672,6.8306,146.4,146.36,45.25098]
[1723564900385,20.0,146.41,146.36,45.25098]
[1723564900386,26.8302,146.41,146.36,45.25098]
[1723564901370,6.8306,146.4,146.36,45.25098]
[1723564902156,26.8303,146.41,146.36,45.25098]
[1723564902964,20.0,146.41,146.36,45.25098]
[1723564903173,6.8304,146.41,146.36,45.25098]
[1723564904076,6.8313,146.39,146.36,45.25098]
[1723564904482,6.8307,146.4,146.36,45.25098]
[1723564904777,6.8303,146.41,146.36,45.25098]
[1723564909480,6.8309,146.4,146.36,45.25098]
[1723564909692,31.45,146.42,146.36,45.25098]
[1723564909859,6.8313,146.39,146.36,45.25098]
[1723564911361,33.11063536,146.38,146.32,15.5051]
[1723564911564,6.8334,146.34,146.32,15.5051]
[1723564911773,6.8338,146.33,146.31,6.4343]
[1723564912089,6.8338,146.33,146.29,15.5051]
[1723564912090,31.45,146.34,146.29,15.5051]
[1723564912473,31.45,146.37,146.29,15.5051]
[1723564912666,26.8327,146.36,146.29,15.5051]
[1723564912872,37.0815,146.36,146.29,15.5051]
[1723564913269,6.8341,146.33,146.29,15.5051]
[1723564913878,6.8344,146.32,146.29,15.5051]
[1723564914085,1.66063536,146.35,146.29,15.5051]
[1723564914086,6.834,146.33,146.29,15.5051]
[1723564914301,6.834,146.33,146.3,45.0]
[1723564915664,17.0815,146.36,146.3,45.0]
[1723564915871,6.8334,146.34,146.3,45.0]
[1723564917787,6.8338,146.33,146.3,45.0]
[1723564918184,6.8338,146.33,146.3,44.0]
[1723564920782,1.66063536,146.32,146.29,15.5051]
[1723564920983,6.8349,146.31,146.27,6.4322]
[1723564921294,6.8336,146.34,146.27,6.4322]
[1723564921597,31.45,146.35,146.27,6.4322]
[1723564921598,20.0,146.33,146.27,6.4322]
[1723564922092,20.0,146.34,146.27,6.4322]
[1723564922294,20.0,146.34,146.28,45.25098]
[1723564922605,6.8342,146.33,146.28,45.25098]
[1723564923378,26.8335,146.34,146.28,45.25098]
[1723564923700,6.8338,146.33,146.28,45.25098]
[1723564923998,20.0,146.34,146.28,45.25098]
[1723564924498,6.8339,146.33,146.28,45.25098]
[1723564924688,20.0,146.34,146.28,45.25098]
[1723564924884,21.66063536,146.34,146.28,45.25098]
[1723564925084,6.8343,146.32,146.28,45.25098]
[1723564925302,6.8354,146.3,146.28,45.0]
[1723564925500,6.8347,146.32,146.28,45.0]
[1723564926106,31.45,146.33,146.28,45.0]
[1723564926107,6.8349,146.31,146.28,45.0]
[1723564927114,31.45,146.29,146.26,16.6297]
[1723564927303,1.66063536,146.28,146.23,6.0933]
[1723564927611,6.8366,146.27,146.23,6.0933]
[1723564927807,6.8362,146.28,146.23,6.0933]
[1723564928198,38.2858,146.29,146.23,6.0933]
[1723564928913,38.2858,146.29,146.24,45.12549]
[1723564929118,6.837,146.27,146.24,45.0]
[1723564929299,6.8371,146.26,146.24,45.0]
[1723564929704,31.45,146.27,146.23,45.0]
[1723564929890,31.45,146.29,146.23,45.0]
[1723564930090,38.2857,146.29,146.23,45.0]
[1723564930321,6.8368,146.27,146.23,45.0]
[1723564931594,6.8371,146.26,146.23,45.0]
[1723564932318,38.2876,146.25,146.19,6.4657]